bitfinex/quotes_BTCUSD_20220115
["timestamp","ask_amount","ask_price","bid_price","bid_amount"]
[1642251381267,2.24708011,42709.0,42707.0,0.058533]
[1642251381867,0.058536,42714.0,42707.0,0.058533]
[1642251382169,0.058536,42714.0,42707.0,0.013933]
[1642251382612,0.00046589,42708.0,42707.0,0.29372598]
[1642251383217,0.00046589,42708.0,42707.0,0.56518429]
[1642251384017,0.00046589,42708.0,42707.0,0.94146829]
[1642251384820,1.73052562,42714.0,42707.0,0.56518429]
[1642251385619,0.05853367,42713.0,42707.0,0.56518429]
[1642251385824,1.73052562,42714.0,42707.0,0.56518429]
[1642251386857,1.72052562,42714.0,42707.0,0.56518429]
[1642251387258,1.62052562,42714.0,42708.0,0.21581874]
[1642251387661,1.62052562,42714.0,42707.0,0.52058429]
[1642251388559,1.62052562,42714.0,42709.0,0.05853]
[1642251389160,0.58523247,42715.0,42709.0,0.05853]
[1642251389560,0.58523247,42715.0,42708.0,0.11706]
[1642251389961,0.58523247,42715.0,42712.0,0.058524]
[1642251390211,0.6437632,42715.0,42712.0,0.058524]
[1642251390408,0.05853073,42715.0,42712.0,0.058524]
[1642251390607,0.58523247,42717.0,42712.0,0.058524]
[1642251391208,0.64376447,42717.0,42712.0,0.058524]
[1642251391906,0.64376447,42717.0,42716.0,8.0]
[1642251392110,0.58523247,42717.0,42716.0,8.0]
[1642251392308,0.58523247,42717.0,42716.0,7.9554]
[1642251392709,0.68150646,42717.0,42716.0,7.9554]
[1642251393311,2.87190138,42718.0,42716.0,7.9554]
[1642251393513,2.97190138,42718.0,42716.0,7.9554]
[1642251393957,3.26793843,42718.0,42716.0,7.9554]
[1642251394158,2.58643197,42718.0,42716.0,7.9554]
[1642251394557,2.48643197,42718.0,42716.0,7.9554]
[1642251394759,0.74003846,42717.0,42716.0,7.9554]
[1642251395758,0.058532,42717.0,42716.0,7.9554]
[1642251395958,0.558532,42717.0,42716.0,7.9554]
[1642251396558,0.658532,42717.0,42716.0,7.9554]
[1642251397159,1.058532,42717.0,42716.0,7.9107]
[1642251397361,1.05825018,42717.0,42716.0,7.9107]
[1642251397610,1.05825018,42717.0,42709.0,0.11707]
[1642251397810,0.058538,42712.0,42709.0,0.11707]
[1642251398009,0.05853679,42714.0,42709.0,0.11707]
[1642251400708,0.11707279,42714.0,42709.0,0.11707]
[1642251401111,0.05853679,42714.0,42709.0,0.11707]
[1642251402260,0.05853679,42714.0,42709.0,0.07227]
[1642251402660,0.34402981,42722.0,42719.0,3.68884026]
[1642251402861,0.07271855,42721.0,42719.0,3.68884026]
[1642251403060,0.10127426,42722.0,42719.0,3.68884026]
[1642251403261,0.05853455,42721.0,42719.0,3.68884026]
[1642251403662,0.11706955,42721.0,42719.0,3.68884026]
[1642251404262,0.08828269,42721.0,42719.0,3.68884026]
[1642251404662,0.08328269,42721.0,42719.0,3.68884026]
[1642251406105,1.05452963,42728.0,42719.0,3.98704992]
[1642251406106,0.11704732,42724.0,42719.0,3.98704992]
[1642251406305,0.11704732,42724.0,42720.0,0.058521]
[1642251406509,0.22802676,42727.0,42720.0,0.058521]
[1642251406705,0.87893554,42728.0,42720.0,0.058521]
[1642251407106,0.3247642,42727.0,42721.0,0.26186349]
[1642251407305,0.3247642,42727.0,42721.0,0.21716349]
[1642251407506,0.1,42727.0,42721.0,0.21716349]
[1642251407706,0.11703954,42726.0,42721.0,0.21716349]
[1642251408106,0.11703954,42726.0,42723.0,0.058521]
[1642251408505,0.1163,42728.0,42723.0,0.058521]
[1642251408709,0.1,42728.0,42723.0,0.058521]
[1642251408959,0.58823897,42725.0,42723.0,0.058521]
[1642251409964,0.58823897,42726.0,42723.0,0.058521]
[1642251410860,0.58823897,42727.0,42723.0,0.058521]
[1642251411263,0.58323897,42727.0,42726.0,0.31022235]
[1642251411766,0.6860931,42729.0,42726.0,0.31022235]
[1642251411964,0.6860931,42730.0,42726.0,0.36872835]
[1642251412164,0.6860931,42730.0,42728.0,0.32360865]
[1642251412364,0.6860931,42730.0,42728.0,0.27860865]
[1642251412614,0.6860931,42730.0,42728.0,0.36157865]
[1642251413512,0.6860931,42732.0,42729.0,0.058507]
[1642251414912,0.6860931,42734.0,42729.0,0.058507]
[1642251415111,0.6760931,42734.0,42729.0,0.154687]
[1642251415515,0.6760931,42734.0,42733.0,0.00121746]
[1642251415814,0.88077057,42744.0,42737.0,0.27322421]
[1642251416014,0.78628016,42741.0,42737.0,0.27322421]
[1642251416667,0.11699797,42743.0,42738.0,0.058499]
[1642251417066,0.42327314,42743.0,42738.0,0.058499]
[1642251417268,0.11699797,42743.0,42738.0,0.092739]
[1642251417868,0.058496,42745.0,42738.0,0.092739]
[1642251419169,0.1,42746.0,42738.0,0.092739]
[1642251419569,0.11698488,42747.0,42738.0,0.092739]
[1642251420214,0.11698488,42747.0,42744.0,0.058493]
[1642251420215,0.25313127,42746.0,42744.0,0.058493]
[1642251420415,0.05849188,42747.0,42744.0,0.058493]
[1642251421415,0.4036889,42747.0,42744.0,0.0150901]
[1642251421616,0.5036889,42747.0,42744.0,0.0150901]
[1642251422416,0.5036889,42747.0,42742.0,0.0872751]
[1642251422618,0.5036889,42747.0,42737.0,0.00012]
[1642251422619,0.05849955,42742.0,42737.0,0.00012]
[1642251422818,0.058507,42740.0,42737.0,0.00012]
[1642251423416,0.33365609,42739.0,42737.0,0.00012]
[1642251423617,0.70171425,42739.0,42737.0,0.00012]
[1642251424061,2.78354366,42738.0,42737.0,0.00012]
[1642251424261,2.55,42738.0,42737.0,6e-05]
[1642251424565,2.65,42738.0,42737.0,6e-05]
[1642251424763,2.75,42738.0,42737.0,6e-05]
[1642251425161,2.65,42738.0,42737.0,6e-05]
[1642251426764,2.65,42738.0,42717.0,0.96039587]
[1642251426765,0.0012183,42732.0,42717.0,0.96039587]
[1642251426964,0.0012183,42732.0,42718.0,0.058532]
[1642251426965,0.1755921,42726.0,42718.0,0.058532]
[1642251427166,0.24705499,42725.0,42718.0,0.058532]
[1642251427362,0.24705499,42725.0,42718.0,0.013832]
[1642251427634,0.34006186,42720.0,42718.0,0.013832]
[1642251428033,0.2106189,42719.0,42718.0,0.013832]
[1642251428233,0.2106189,42719.0,42715.0,0.058536]
[1642251428433,0.34006186,42720.0,42709.0,0.234055]
[1642251428634,0.32753758,42712.0,42706.0,0.27741099]
[1642251428834,0.32753758,42712.0,42705.0,0.117085]
[1642251429035,0.43362215,42712.0,42705.0,0.117085]
[1642251429234,0.69522569,42712.0,42705.0,0.117085]
[1642251429435,0.39038073,42710.0,42705.0,0.117085]
[1642251429637,0.49166874,42710.0,42705.0,0.117085]
[1642251431663,0.21883949,42709.0,42705.0,0.117085]
[1642251431860,0.05854298,42711.0,42705.0,0.117085]
[1642251432064,0.00608457,42712.0,42705.0,0.117085]
[1642251432464,0.00608457,42712.0,42705.0,0.072385]
[1642251435524,0.06462546,42712.0,42705.0,0.072385]
[1642251435824,0.00608457,42712.0,42705.0,0.072445]
[1642251436627,0.058542,42712.0,42705.0,0.67309024]
[1642251436824,0.20781311,42711.0,42705.0,0.67309024]
[1642251437025,0.22837551,42714.0,42705.0,0.67309024]
[1642251437325,0.23291247,42714.0,42705.0,0.027845]
[1642251437927,0.05853889,42713.0,42705.0,0.027845]
[1642251438726,0.55018392,42715.0,42705.0,0.027845]
[1642251439865,0.65018392,42715.0,42705.0,0.027845]
[1642251440271,0.11707913,42714.0,42705.0,0.027845]
[1642251440467,0.65018392,42715.0,42705.0,0.027845]
[1642251440869,0.44437871,42715.0,42705.0,0.027845]
[1642251441067,0.00120469,42716.0,42705.0,0.027845]
[1642251442070,0.29686245,42713.0,42705.0,0.72590928]
[1642251442270,0.11708563,42711.0,42705.0,0.72590928]
[1642251442470,0.11708563,42711.0,42705.0,0.68120928]
[1642251442717,0.11708563,42711.0,42704.0,0.05854]
[1642251443115,0.63688606,42713.0,42705.0,0.117085]
[1642251443516,0.20397457,42712.0,42706.0,0.29358052]
[1642251443720,0.20397457,42712.0,42708.0,0.05854]
[1642251443918,0.63688606,42713.0,42708.0,0.05854]
[1642251444119,0.21019423,42712.0,42708.0,0.05854]
[1642251444320,0.00120469,42716.0,42708.0,0.05854]
[1642251444321,0.23578328,42716.0,42708.0,0.05854]
[1642251444718,0.05853984,42713.0,42708.0,0.05854]
[1642251445717,0.34101198,42714.0,42708.0,0.05854]
[1642251446360,0.48645539,42716.0,42708.0,0.05854]
[1642251446660,0.64499139,42716.0,42708.0,0.05854]
[1642251447462,0.29910909,42713.0,42708.0,0.01384]
[1642251447863,0.05854106,42712.0,42708.0,0.01384]
[1642251448864,0.29910909,42713.0,42708.0,0.01384]
[1642251449867,0.21707562,42715.0,42708.0,0.01384]
[1642251450109,0.22490793,42715.0,42708.0,0.01384]
[1642251450310,0.11707562,42715.0,42708.0,0.01384]
[1642251451110,0.00120469,42716.0,42708.0,0.01384]
[1642251451510,2.18159469,42714.0,42708.0,0.01384]
[1642251452111,0.0585427,42712.0,42708.0,0.01384]
[1642251452513,2.18159469,42714.0,42705.0,0.086225]
[1642251452812,0.20646922,42713.0,42705.0,0.086225]
[1642251453013,0.20215193,42713.0,42705.0,0.086225]
[1642251453216,2.18159469,42714.0,42708.0,0.05854]
[1642251453414,0.00120469,42716.0,42709.0,0.38737623]
[1642251453613,0.20296912,42716.0,42709.0,0.38737623]
[1642251454670,0.20296912,42716.0,42711.0,0.058536]
[1642251455470,0.058538,42715.0,42711.0,0.058536]
[1642251455672,2.35002105,42714.0,42711.0,0.058536]
[1642251455874,0.20528684,42713.0,42711.0,0.058536]
[1642251456072,2.35002105,42714.0,42711.0,0.058536]
[1642251456373,0.33272772,42713.0,42711.0,0.058536]
[1642251456572,0.20373407,42712.0,42711.0,0.058536]
[1642251456774,0.33272772,42713.0,42711.0,0.058536]
[1642251457273,2.35002105,42714.0,42711.0,0.058536]
[1642251457474,0.00120469,42716.0,42711.0,0.013636]
[1642251457713,0.25583083,42718.0,42711.0,0.013636]
[1642251457913,0.10590514,42719.0,42714.0,0.27832804]
[1642251458113,0.10590514,42719.0,42711.0,0.013636]
[1642251458715,0.00590514,42719.0,42711.0,0.013636]
[1642251459119,0.00590514,42719.0,42714.0,0.30709414]
[1642251459314,0.00590514,42719.0,42715.0,0.058528]
[1642251459915,2.30426528,42716.0,42715.0,0.058528]
[1642251460116,2.30426528,42716.0,42714.0,0.117056]
[1642251460316,0.00590514,42719.0,42714.0,0.117056]
[1642251461762,0.00090514,42719.0,42714.0,0.117056]
[1642251462562,1.86659984,42718.0,42714.0,0.072356]
[1642251462962,0.00090514,42719.0,42714.0,0.072356]
[1642251463564,4.011465,42716.0,42714.0,0.072356]
[1642251464363,4.006465,42716.0,42714.0,0.072356]
[1642251466319,4.006465,42716.0,42714.0,0.33060784]
[1642251467415,4.006465,42716.0,42714.0,0.28600784]
[1642251468016,3.538348,42716.0,42714.0,0.28600784]
[1642251468216,3.538348,42716.0,42714.0,0.98437447]
[1642251468866,3.538348,42716.0,42714.0,1.04288947]
[1642251471063,3.538348,42716.0,42714.0,1.14288947]
[1642251471264,3.538348,42716.0,42714.0,1.04418343]
[1642251471566,3.533348,42716.0,42714.0,1.04418343]
[1642251471763,3.533348,42716.0,42714.0,0.98566843]
[1642251471963,3.533348,42716.0,42714.0,1.08566843]
[1642251472614,3.533348,42716.0,42714.0,1.04106843]
[1642251472814,3.065249,42716.0,42714.0,1.04106843]
[1642251473214,3.065249,42716.0,42715.0,1.12868112]
[1642251473414,2.597155,42716.0,42715.0,1.12868112]
[1642251475115,2.597155,42716.0,42715.0,0.69836663]
[1642251475318,2.597155,42716.0,42714.0,0.3597578]
[1642251475518,2.597155,42716.0,42714.0,0.117056]
[1642251475916,2.597155,42716.0,42714.0,0.177056]
[1642251476367,2.597155,42716.0,42714.0,0.50037924]
[1642251476571,2.597155,42716.0,42714.0,0.177056]
[1642251477570,2.597155,42716.0,42714.0,0.43871218]
[1642251478370,2.597155,42716.0,42714.0,0.65917646]
[1642251478770,2.597155,42716.0,42714.0,0.71769146]
[1642251479374,2.597155,42716.0,42714.0,0.81769146]
[1642251480117,2.597155,42716.0,42714.0,0.59722718]
[1642251482619,2.597155,42716.0,42714.0,0.55232718]
[1642251483220,2.597155,42716.0,42714.0,0.77341871]
[1642251483420,2.597155,42716.0,42714.0,0.55232718]
[1642251483859,2.597155,42716.0,42714.0,0.145971]
[1642251484361,2.597155,42716.0,42714.0,0.087456]
[1642251485866,2.597155,42716.0,42714.0,0.287456]
[1642251486066,0.26540339,42715.0,42714.0,0.287456]
[1642251486266,2.597155,42716.0,42714.0,0.287456]
[1642251487714,2.597155,42716.0,42715.0,1.35826491]
[1642251488815,2.597155,42716.0,42714.0,1.05817863]
[1642251490216,2.597155,42716.0,42715.0,1.36225875]
[1642251492362,2.597155,42716.0,42715.0,0.66389212]
[1642251492565,2.597155,42716.0,42715.0,0.61899212]
[1642251493564,2.597155,42716.0,42715.0,1.31983747]
[1642251495116,2.92358839,42716.0,42715.0,1.31983747]
[1642251495518,3.0248853,42716.0,42715.0,1.31983747]
[1642251495915,5.2248853,42716.0,42715.0,1.31983747]
[1642251496115,5.2248853,42716.0,42715.0,1.30053747]
[1642251496515,5.5748853,42716.0,42715.0,0.41603747]
[1642251496714,5.2248853,42716.0,42715.0,0.41603747]
[1642251496916,5.2248853,42716.0,42714.0,0.242756]
[1642251497515,0.00128672,42715.0,42714.0,0.242756]
[1642251497715,2.80165425,42715.0,42714.0,0.198056]
[1642251498217,2.90165425,42715.0,42714.0,0.198056]
[1642251502616,2.90165425,42715.0,42714.0,0.153256]
[1642251504017,2.90892512,42715.0,42714.0,0.153256]
[1642251504218,2.90165425,42715.0,42714.0,0.153256]
[1642251504418,2.90165425,42715.0,42703.0,0.058541]
[1642251504419,0.00124696,42707.0,42703.0,0.058541]
[1642251504621,0.05855,42704.0,42700.0,0.001]
[1642251504819,0.00125592,42701.0,42700.0,0.001]
[1642251507666,0.00125592,42701.0,42692.0,0.8697]
[1642251507667,0.37125592,42701.0,42692.0,0.8697]
[1642251507971,0.37125592,42701.0,42685.0,0.42442]
[1642251507972,0.00126862,42696.0,42685.0,0.42442]
[1642251508167,0.00126862,42696.0,42685.0,0.0021]
[1642251508366,0.26339802,42687.0,42685.0,0.0021]
[1642251508567,0.00123038,42691.0,42685.0,0.0021]
[1642251508768,0.34464695,42687.0,42685.0,0.0021]
[1642251511019,0.63447033,42687.0,42685.0,0.0021]
[1642251511619,0.34464695,42687.0,42685.0,0.0021]
[1642251512522,1.26724187,42686.0,42685.0,0.0021]
[1642251512719,0.95,42686.0,42683.0,0.01787]
[1642251513721,0.94665566,42686.0,42683.0,0.01787]
[1642251513966,0.34464695,42687.0,42683.0,0.01787]
[1642251515366,0.00121841,42685.0,42683.0,0.0011]
[1642251516369,0.40168818,42685.0,42683.0,0.0011]
[1642251516570,0.40168818,42685.0,42680.0,0.0002]
[1642251516571,0.42840583,42684.0,42680.0,0.0002]
[1642251516768,3.842,42683.0,42676.0,0.0021]
[1642251516970,0.05985942,42677.0,42676.0,0.0021]
[1642251517815,0.38980945,42671.0,42667.0,0.67557502]
[1642251518014,0.38980945,42671.0,42666.0,0.0011]
[1642251518518,0.3351618,42670.0,42666.0,0.059695]
[1642251519916,0.00121814,42667.0,42666.0,0.0011]
[1642251520416,0.00121814,42667.0,42664.0,0.113282]
[1642251520617,0.00121814,42667.0,42665.0,0.79768505]
[1642251521477,0.00121814,42667.0,42664.0,0.91096705]
[1642251522675,0.3351618,42670.0,42664.0,1.13161753]
[1642251522880,1.92170251,42682.0,42665.0,0.376284]
[1642251523079,0.00127006,42681.0,42665.0,0.1]
[1642251523276,0.20081194,42681.0,42671.0,0.117163]
[1642251523682,0.00127006,42681.0,42671.0,0.175737]
[1642251523878,0.00127006,42681.0,42677.0,0.28924379]
[1642251524080,0.26889925,42683.0,42678.0,0.058574]
[1642251524477,0.59960251,42685.0,42678.0,0.058574]
[1642251524878,0.22359176,42686.0,42678.0,0.058574]
[1642251525522,0.00120111,42688.0,42681.0,0.058574]
[1642251526228,0.59960251,42692.0,42681.0,0.058574]
[1642251526229,0.058572,42691.0,42681.0,0.058574]
[1642251526425,0.59960251,42692.0,42686.0,0.31736304]
[1642251526426,0.85282784,42692.0,42686.0,0.31736304]
[1642251526824,0.85282784,42692.0,42688.0,0.05856]
[1642251527023,0.59960251,42692.0,42688.0,0.05856]
[1642251527224,0.22359176,42691.0,42688.0,0.05856]
[1642251527626,0.00120453,42694.0,42688.0,0.05856]
[1642251527825,0.00120453,42694.0,42688.0,0.01396]
[1642251528226,0.28021159,42693.0,42688.0,0.01396]
[1642251528728,0.00120453,42694.0,42688.0,0.01396]
[1642251529170,0.32909246,42697.0,42688.0,0.01396]
[1642251529171,0.22359176,42697.0,42688.0,0.01396]
[1642251529570,0.59960251,42698.0,42688.0,0.01396]
[1642251529771,0.34249391,42692.0,42688.0,0.01396]
[1642251529971,0.34249391,42692.0,42690.0,0.70136039]
[1642251530973,0.30581576,42695.0,42690.0,0.70136039]
[1642251531173,0.30581576,42695.0,42689.0,0.75992039]
[1642251531577,0.30581576,42695.0,42689.0,0.70136039]
[1642251532374,0.30581576,42695.0,42686.0,0.117119]
[1642251532818,0.30581576,42695.0,42689.0,0.058562]
[1642251533120,0.20063317,42696.0,42689.0,0.043562]
[1642251533319,0.20063317,42696.0,42689.0,0.040562]
[1642251533722,0.24850945,42692.0,42689.0,0.040562]
[1642251534222,0.20202026,42696.0,42689.0,0.040562]
[1642251535320,0.33079058,42694.0,42689.0,0.040562]
[1642251535521,0.20202026,42696.0,42689.0,0.040562]
[1642251535723,0.00124815,42696.0,42689.0,0.040562]
[1642251536467,0.31858773,42694.0,42689.0,0.040562]
[1642251536763,0.00124815,42696.0,42689.0,0.040562]
[1642251537862,0.00124815,42696.0,42686.0,0.072419]
[1642251537863,0.31717842,42697.0,42686.0,0.068381]
[1642251538264,0.31717842,42697.0,42689.0,0.058562]
[1642251540317,0.31717842,42697.0,42689.0,0.053562]
[1642251541622,0.20370824,42696.0,42689.0,0.053562]
[1642251541817,0.20370824,42696.0,42689.0,0.028562]
[1642251542318,0.31717842,42697.0,42689.0,0.028562]
[1642251542718,0.31717842,42697.0,42686.0,0.052143]
[1642251543719,0.31717842,42697.0,42689.0,0.058562]
[1642251545769,0.31717842,42697.0,42685.0,0.33183365]
[1642251546173,0.31286581,42690.0,42683.0,1.1547]
[1642251546371,0.31286581,42690.0,42682.0,0.2979]
[1642251546571,0.31286581,42690.0,42686.0,0.117119]
[1642251547170,0.31286581,42690.0,42688.0,0.12]
[1642251547372,0.19147222,42693.0,42688.0,0.12]
[1642251547639,0.19323435,42693.0,42688.0,0.178563]
[1642251547838,0.19323435,42693.0,42688.0,0.133963]
[1642251548038,0.27761775,42694.0,42688.0,0.133963]
[1642251548239,0.27761775,42694.0,42688.0,0.12]
[1642251548538,0.24348206,42693.0,42688.0,0.12]
[1642251548739,0.19621498,42692.0,42688.0,0.12]
[1642251550639,0.19621498,42692.0,42689.0,0.058562]
[1642251550842,0.19621498,42692.0,42688.0,0.12]
[1642251551667,0.44035266,42693.0,42688.0,0.12]
[1642251552268,0.24348206,42693.0,42688.0,0.12]
[1642251552869,0.24348206,42693.0,42688.0,0.0754]
[1642251553070,0.4370872,42693.0,42688.0,0.133964]
[1642251553973,0.4370872,42693.0,42688.0,0.0754]
[1642251554174,0.05856895,42692.0,42688.0,0.0754]
[1642251554973,0.4370872,42693.0,42688.0,0.0754]
[1642251555423,0.05856911,42692.0,42688.0,0.0754]
[1642251555822,0.4370872,42693.0,42688.0,0.0754]
[1642251557822,0.4370872,42693.0,42688.0,0.0306]
[1642251558876,0.4956562,42693.0,42688.0,0.0306]
[1642251559176,0.55422521,42693.0,42688.0,0.0306]
[1642251559377,0.0012374,42694.0,42689.0,0.21218019]
[1642251559579,0.0012374,42694.0,42688.0,0.0306]
[1642251561580,0.98538073,42700.0,42688.0,0.0306]
[1642251561581,0.59960251,42700.0,42689.0,0.21789958]
[1642251562482,0.26546616,42699.0,42694.0,0.27302782]
[1642251562921,0.0060856,42702.0,42696.0,0.013951]
[1642251564120,0.26638751,42702.0,42696.0,0.013951]
[1642251564720,0.0060856,42702.0,42696.0,0.013951]
[1642251565824,0.0060856,42702.0,42696.0,0.072492]
[1642251566022,0.0060856,42702.0,42696.0,0.13103215]
[1642251566223,0.0060856,42702.0,42696.0,0.013951]
[1642251567069,0.0060856,42702.0,42696.0,0.072493]
[1642251567271,0.0060856,42702.0,42698.0,0.058541]
[1642251567969,0.59960251,42707.0,42699.0,0.33821437]
[1642251568170,0.59960251,42707.0,42702.0,0.29855134]
[1642251568369,0.89226776,42708.0,42700.0,0.23417628]
[1642251568570,0.59960251,42708.0,42700.0,0.23417628]
[1642251568870,0.59960251,42708.0,42704.0,0.058537]
[1642251569276,0.59960251,42709.0,42704.0,0.058537]
[1642251570331,0.59960251,42710.0,42704.0,0.058537]
[1642251570728,0.59960251,42710.0,42704.0,0.117068]
[1642251570930,0.59960251,42710.0,42704.0,0.058537]
[1642251572128,0.59960251,42712.0,42704.0,0.058537]
[1642251572527,0.59960251,42712.0,42705.0,0.20692743]
[1642251572728,0.59960251,42712.0,42707.0,0.058527]
[1642251572930,0.59960251,42712.0,42707.0,0.013827]
[1642251573329,0.59960251,42715.0,42707.0,0.013827]
[1642251573975,0.59960251,42714.0,42707.0,0.013827]
[1642251574472,0.31359592,42713.0,42707.0,0.013827]
[1642251574672,0.59960251,42714.0,42707.0,0.013827]
[1642251576273,0.27368318,42713.0,42707.0,0.013827]
[1642251577374,0.24596133,42710.0,42707.0,0.013827]
[1642251577629,0.59960251,42714.0,42707.0,0.24031145]
[1642251577829,0.59960251,42714.0,42707.0,0.013827]
[1642251578029,0.59960251,42714.0,42706.0,0.305769]
[1642251578228,2.597155,42716.0,42706.0,0.90491352]
[1642251578427,2.597155,42716.0,42710.0,0.05852056]
[1642251578631,2.597155,42716.0,42712.0,0.058523]
[1642251583081,2.597155,42716.0,42712.0,0.013823]
[1642251585726,0.24491147,42712.0,42711.0,0.0506418]
[1642251586327,0.24491147,42712.0,42709.0,0.117055]
[1642251586929,0.25955377,42711.0,42709.0,0.117055]
[1642251587530,0.24491147,42712.0,42709.0,0.117055]
[1642251588030,0.24491147,42712.0,42709.0,0.072355]
[1642251588433,0.24491147,42712.0,42709.0,0.067355]
[1642251588631,0.32259467,42711.0,42709.0,0.067355]
[1642251589676,0.24491147,42712.0,42709.0,0.067355]
[1642251590676,2.597155,42716.0,42709.0,0.067355]
[1642251590877,2.84237375,42716.0,42709.0,0.067355]
[1642251591877,0.33545416,42714.0,42709.0,0.067355]
[1642251592077,2.597155,42716.0,42709.0,0.66776952]
[1642251592279,2.597155,42716.0,42710.0,0.058521]
[1642251592731,2.597155,42716.0,42710.0,0.65766552]
[1642251592929,2.597155,42716.0,42710.0,0.61286552]
[1642251593129,2.597155,42716.0,42712.0,0.26232808]
[1642251593330,2.597155,42716.0,42712.0,0.11232808]
[1642251593529,2.597155,42716.0,42710.0,0.71286552]
[1642251593732,2.597155,42716.0,42712.0,0.058526]
[1642251593933,2.597155,42716.0,42712.0,0.71618952]
[1642251594530,2.597155,42716.0,42712.0,0.65767052]
[1642251596775,2.597155,42716.0,42712.0,0.71618952]
[1642251597377,2.597155,42716.0,42712.0,1.02443452]
[1642251597579,2.597155,42716.0,42715.0,0.00120273]
[1642251597776,2.597155,42716.0,42715.0,0.05971273]
[1642251597978,2.597155,42716.0,42715.0,0.01481273]
[1642251598379,2.597155,42716.0,42715.0,1.22967425]
[1642251598578,2.597155,42716.0,42715.0,1.70595825]
[1642251599178,2.597155,42716.0,42715.0,1.00505773]
[1642251599379,2.5688892,42716.0,42715.0,1.00505773]
[1642251601029,2.5688892,42716.0,42715.0,0.90505773]
[1642251601433,2.5688892,42716.0,42715.0,0.513961]
[1642251601931,2.89212626,42716.0,42715.0,0.513961]
[1642251602432,2.89212626,42716.0,42711.0,0.80112078]
[1642251602634,0.20764226,42715.0,42713.0,0.60079862]
[1642251603033,0.00126815,42714.0,42713.0,0.55609862]
[1642251603234,2.93222098,42714.0,42713.0,0.55609862]
[1642251603635,0.30783439,42710.0,42708.0,0.55609862]
[1642251604380,0.30991003,42709.0,42708.0,0.55609862]
[1642251604578,1.65991003,42709.0,42708.0,0.55609862]
[1642251604777,0.30991003,42709.0,42708.0,0.55609862]
[1642251604979,0.49076098,42714.0,42703.0,0.70093173]
[1642251604980,0.00126815,42714.0,42703.0,0.70093173]
[1642251605280,0.00126815,42714.0,42708.0,0.23]
[1642251606079,0.28007958,42711.0,42708.0,0.23]
[1642251606681,0.70279753,42714.0,42708.0,0.288535]
[1642251606884,0.32948236,42714.0,42708.0,0.288535]
[1642251607940,0.27449047,42712.0,42708.0,0.288535]
[1642251608141,0.27449047,42712.0,42708.0,0.243535]
[1642251608342,0.00126815,42714.0,42708.0,0.243535]
[1642251609243,0.01743307,42711.0,42710.0,0.30265683]
[1642251609447,0.01743307,42711.0,42710.0,0.59769439]
[1642251609643,0.01743307,42711.0,42710.0,1.38865059]
[1642251609842,0.01743307,42711.0,42710.0,1.76493459]
[1642251610044,0.01743307,42711.0,42710.0,1.36493459]
[1642251610444,0.01743307,42712.0,42711.0,0.95]
[1642251610646,2.5688892,42716.0,42714.0,0.11701315]
[1642251610843,2.5688892,42716.0,42715.0,0.376284]
[1642251611043,2.5688892,42716.0,42715.0,0.1]
[1642251612280,2.5688892,42716.0,42715.0,0.36225422]
[1642251612480,2.1008562,42716.0,42715.0,0.73853822]
[1642251612679,2.1008562,42716.0,42715.0,1.05100507]
[1642251612883,2.1008562,42716.0,42715.0,0.83853822]
[1642251613080,2.1008562,42716.0,42715.0,0.431484]
[1642251613280,2.1008562,42716.0,42715.0,0.331484]
[1642251613479,2.1008562,42716.0,42714.0,0.17552015]
[1642251613681,2.1008562,42716.0,42715.0,0.36225422]
[1642251614081,2.1008562,42716.0,42715.0,0.46225422]
[1642251614481,2.1008562,42716.0,42715.0,1.15974347]
[1642251615533,2.1008562,42716.0,42715.0,0.46225422]
[1642251617236,2.1008562,42716.0,42715.0,0.36225422]
[1642251618232,2.1008562,42716.0,42715.0,0.31765422]
[1642251618981,2.1008562,42716.0,42715.0,1.0161885]
[1642251619681,2.1008562,42716.0,42715.0,0.69853428]
[1642251620084,2.1008562,42716.0,42715.0,1.24538564]
[1642251620482,2.1008562,42716.0,42715.0,0.79853428]
[1642251620882,2.1008562,42716.0,42715.0,0.1]
[1642251621282,2.1008562,42716.0,42715.0,0.80112078]
[1642251621283,0.68188153,42716.0,42715.0,0.80112078]
[1642251621484,0.68188153,42716.0,42715.0,1.17697078]
[1642251621686,0.68188153,42716.0,42715.0,1.27697078]
[1642251622084,0.68188153,42716.0,42715.0,0.47585]
[1642251622487,0.68188153,42716.0,42715.0,0.76940935]
[1642251623326,0.68188153,42716.0,42715.0,0.72410935]
[1642251624223,0.68188153,42716.0,42715.0,0.43055]
[1642251625327,0.68188153,42716.0,42715.0,0.73368692]
[1642251625526,0.67951807,42716.0,42715.0,0.73368692]
[1642251625927,0.67951807,42716.0,42715.0,0.43055]
[1642251626128,0.67951807,42716.0,42715.0,0.33055]
[1642251626380,0.67951807,42716.0,42713.0,0.80112078]
[1642251626381,2.68662087,42716.0,42713.0,0.80112078]
[1642251626581,0.090165,42715.0,42713.0,0.80112078]
[1642251626979,2.6849126,42714.0,42713.0,0.80112078]
[1642251627180,3.07771271,42714.0,42708.0,0.23]
[1642251627381,2.98754771,42714.0,42708.0,0.23]
[1642251627785,0.090165,42713.0,42708.0,0.23]
[1642251627980,0.30263511,42714.0,42708.0,0.23]
[1642251628180,0.30263511,42714.0,42709.0,0.33105]
[1642251628481,0.18510655,42715.0,42709.0,0.33105]
[1642251628680,0.67951807,42716.0,42709.0,0.33105]
[1642251628880,0.67951807,42716.0,42709.0,0.058528]
[1642251629679,0.26254797,42715.0,42709.0,0.058528]
[1642251631025,0.67951807,42716.0,42709.0,0.058528]
[1642251631226,0.18416153,42715.0,42709.0,0.058528]
[1642251631625,0.2833895,42710.0,42709.0,0.058528]
[1642251631830,0.47239878,42710.0,42708.0,0.23]
[1642251632026,0.2833895,42710.0,42708.0,0.23]
[1642251632626,0.99359936,42709.0,42708.0,0.23]
[1642251632826,0.34359936,42709.0,42708.0,0.23]
[1642251633029,0.21231722,42715.0,42708.0,0.23]
[1642251633226,0.21231722,42715.0,42708.0,0.1851]
[1642251633876,0.34077001,42709.0,42708.0,0.1851]
[1642251635376,0.34077001,42709.0,42708.0,0.60338806]
[1642251635776,0.53317288,42709.0,42708.0,0.60338806]
[1642251636778,0.53317288,42709.0,42708.0,0.1851]
[1642251637179,2.91934237,42709.0,42708.0,0.1851]
[1642251637379,2.7269395,42709.0,42708.0,0.1851]
[1642251638238,3.13832378,42709.0,42708.0,0.1404]
[1642251639338,0.88771295,42709.0,42708.0,0.1404]